fUST/lending_fUST_20250811
["ID","MTS","AMOUNT","RATE_DAILY","PERIOD"]
[378531961,1754903439536,-500.0,0.00021613,2]
[378531962,1754903439546,-300.0,0.00021633,2]
[378531963,1754903439555,-160.0,0.00021675,2]
[378531964,1754903439565,-312.6,0.00021714,2]
[378531965,1754903439574,-300.0,0.00021718,2]
[378531966,1754903439584,-236.0,0.00021719,2]
[378531967,1754903439594,-420.0,0.00021719,2]
[378531968,1754903439603,-420.0,0.00021719,2]
[378531969,1754903439613,-1680.0,0.0002172,2]
[378531970,1754903439622,-500.0,0.00021732,2]
[378531971,1754903439631,-212.05419545,0.00021732,2]
[378531972,1754903439641,-2000.0,0.00021733,2]
[378531973,1754903439651,-2000.0,0.00021733,2]
[378531974,1754903439660,-2000.0,0.00021733,2]
[378531975,1754903439669,-243.121,0.00021733,2]
[378531976,1754903439678,-577.057513,0.00021733,2]
[378531977,1754903439687,-577.057513,0.00021733,2]
[378531978,1754903439696,-151.0,0.00021733,2]
[378531979,1754903439706,-151.0,0.00021733,2]
[378531980,1754903439716,-2000.0,0.00021733,2]
[378531981,1754903439726,-2000.0,0.00021733,2]
[378531982,1754903439736,-2000.0,0.00021733,2]
[378531983,1754903439746,-2000.0,0.00021733,2]
[378531984,1754903439755,-2000.0,0.00021733,2]
[378531985,1754903439764,-2000.0,0.00021733,2]
[378531986,1754903439774,-2000.0,0.00021733,2]
[378531987,1754903439784,-2000.0,0.00021733,2]
[378531988,1754903439793,-2000.0,0.00021733,2]
[378531989,1754903439803,-2000.0,0.00021733,2]
[378531990,1754903439812,-2000.0,0.00021733,2]
[378531991,1754903439822,-2000.0,0.00021733,2]
[378531992,1754903439832,-2000.0,0.00021733,2]
[378531993,1754903439841,-2000.0,0.00021733,2]
[378531994,1754903439851,-2000.0,0.00021733,2]
[378531995,1754903439860,-2000.0,0.00021733,2]
[378531996,1754903439870,-2000.0,0.00021733,2]
[378531997,1754903439884,-2000.0,0.00021733,2]
[378531998,1754903439893,-2000.0,0.00021733,2]
[378531999,1754903439903,-2000.0,0.00021733,2]
[378532000,1754903439913,-2000.0,0.00021733,2]
[378532001,1754903439923,-2000.0,0.00021733,2]
[378532002,1754903439933,-2000.0,0.00021733,2]
[378532003,1754903439943,-2000.0,0.00021733,2]
[378532005,1754903439952,-2000.0,0.00021733,2]
[378532006,1754903439963,-2000.0,0.00021733,2]
[378532007,1754903439972,-2000.0,0.00021733,2]
[378532008,1754903439982,-2000.0,0.00021733,2]
[378532009,1754903439993,-342.735,0.00021733,2]
[378532011,1754903440003,-503.551,0.00021733,2]
[378532013,1754903440012,-2000.0,0.00021733,2]
[378532015,1754903440022,-2000.0,0.00021733,2]
[378532017,1754903440032,-163.439904,0.00021733,2]
[378532019,1754903440041,-163.439904,0.00021733,2]
[378532021,1754903440051,-1680.0,0.00021823,2]
[378532023,1754903440060,-971.49987,0.0002183,2]
[378532025,1754903440069,-971.49987,0.0002183,2]
[378532027,1754903440079,-151.0,0.00021833,2]
[378532029,1754903440089,-577.057513,0.00021833,2]
[378532030,1754903440099,-577.057513,0.00021833,2]
[378532032,1754903440110,-524.70695,0.00021833,2]
[378532035,1754903440120,-524.70695,0.00021833,2]
[378532037,1754903440130,-151.0,0.00021833,2]
[378532039,1754903440140,-151.0,0.00021833,2]
[378532041,1754903440150,-163.439904,0.00021843,2]
[378532042,1754903440159,-163.439904,0.00021843,2]
[378532044,1754903440168,-5000.0,0.00021876,2]
[378532046,1754903440178,-500.0,0.00021887,2]
[378532048,1754903440187,-151.0,0.000219,4]
[378532050,1754903440197,-7714.96137998,0.000219,2]
[378532052,1754903440206,-10821.85,0.00021917,2]
[378532054,1754903440215,-420.0,0.0002194,2]
[378532056,1754903440225,-500.0,0.00021973,2]
[378532058,1754903440234,-500.0,0.00021973,2]
[378532060,1754903440244,-500.0,0.00021973,2]
[378532062,1754903440253,-500.0,0.00021973,2]
[378532064,1754903440262,-500.0,0.00021973,2]
[378532066,1754903440272,-500.0,0.00021973,2]
[378532067,1754903440281,-500.0,0.00021973,2]
[378532068,1754903440291,-500.0,0.00021973,2]
[378532070,1754903440301,-500.0,0.00021973,2]
[378532071,1754903440310,-500.0,0.00021973,2]
[378532073,1754903440320,-500.0,0.00021973,2]
[378532075,1754903440329,-500.0,0.00021973,2]
[378532077,1754903440339,-500.0,0.00021973,2]
[378532079,1754903440348,-500.0,0.00021973,2]
[378532081,1754903440357,-420.10754665,0.00021973,2]
[378532083,1754903440370,-500.0,0.00021973,2]
[378532084,1754903440379,-500.0,0.00021973,2]
[378532085,1754903440389,-500.0,0.00021973,2]
[378532086,1754903440398,-502.95105016,0.00021973,2]
[378532087,1754903440407,-500.0,0.00021973,2]
[378532088,1754903440416,-500.0,0.00021973,2]
[378532089,1754903440426,-500.0,0.00021973,2]
[378532090,1754903440435,-157.66832612,0.00021973,2]
[378532092,1754903440445,-500.38511796,0.00021973,2]
[378532094,1754903440455,-500.0,0.00021973,2]
[378532096,1754903440464,-503.0583135,0.00021973,2]
[378532098,1754903440473,-500.0,0.00021973,2]
[378532099,1754903440482,-500.0,0.00021973,2]
[378532100,1754903440492,-258.46628735,0.00021973,2]
[378532102,1754903440502,-500.0,0.00021973,2]
[378532104,1754903440511,-500.0,0.00021973,2]
[378532105,1754903440522,-443.76120411,0.00021973,2]
[378532106,1754903440533,-500.0,0.00021973,2]
[378532108,1754903440542,-500.0,0.00021973,2]
[378532109,1754903440552,-500.0,0.00021973,2]
[378532111,1754903440562,-500.0,0.00021973,2]
[378532113,1754903440571,-500.0,0.00021973,2]
[378532115,1754903440582,-500.0,0.00021973,2]
[378532117,1754903440593,-358.87746642,0.00021973,2]
[378532119,1754903440602,-500.0,0.00021973,2]
[378532120,1754903440612,-500.0,0.00021973,2]
[378532121,1754903440623,-500.0,0.00021973,2]
[378532122,1754903440632,-500.0,0.00021973,2]
[378532123,1754903440793,-500.0,0.00021973,2]
[378532124,1754903440804,-258.85036039,0.00021973,2]
[378532125,1754903440815,-500.0,0.00021973,2]
[378532126,1754903440825,-500.0,0.00021973,2]
[378532127,1754903440835,-516.5355599,0.00021973,2]
[378532128,1754903440844,-500.0,0.00021973,2]
[378532129,1754903440853,-500.0,0.00021973,2]
[378532130,1754903440862,-500.0,0.00021973,2]
[378532131,1754903440871,-500.0,0.00021973,2]
[378532132,1754903440884,-500.0,0.00021973,2]
[378532133,1754903440893,-500.0,0.00021973,2]
[378532134,1754903440903,-500.0,0.00021973,2]
[378532135,1754903440912,-500.0,0.00021973,2]
[378532136,1754903440923,-500.0,0.00021973,2]
[378532137,1754903440932,-160.15625833,0.00021973,2]
[378532138,1754903440942,-503.15587219,0.00021973,2]
[378532139,1754903440952,-158.06161699,0.00021973,2]
[378532140,1754903440962,-500.0,0.00021973,2]
[378532141,1754903440971,-167.51177959,0.00021973,2]
[378532142,1754903440981,-500.0,0.00021973,2]
[378532143,1754903440990,-500.0,0.00021973,2]
[378532144,1754903441000,-500.0,0.00021973,2]
[378532145,1754903441009,-155.55451214,0.00021973,2]
[378532146,1754903441018,-151.0,0.00021987,2]
[378532147,1754903441028,-151.0,0.00021987,2]
[378532148,1754903441037,-18502.69577858,0.00021987,2]
[378532149,1754903441047,-151.0,0.00021987,2]
[378532150,1754903441056,-151.0,0.00021987,2]
[378532151,1754903441065,-151.0,0.00021987,2]
[378532152,1754903441074,-151.0,0.00021987,2]
[378532153,1754903441083,-151.0,0.00021987,2]
[378532154,1754903441093,-500.0,0.00021987,2]
[378532155,1754903441102,-151.0,0.00021987,2]
[378532156,1754903441111,-151.0,0.00021987,2]
[378532157,1754903441120,-500.0,0.00021987,2]
[378532158,1754903441130,-151.0,0.00021987,2]
[378532159,1754903441139,-151.0,0.00021987,2]
[378532160,1754903441149,-2183.31810187,0.00021987,2]
[378532161,1754903441158,-151.0,0.00021987,2]
[378532162,1754903441167,-500.0,0.00021987,2]
[378532163,1754903441177,-151.0,0.00021987,2]
[378532164,1754903441186,-151.0,0.00021987,2]
[378532165,1754903441195,-151.0,0.00021987,2]
[378532166,1754903441204,-500.0,0.00021987,2]
[378532167,1754903441213,-151.0,0.00021987,2]
[378532168,1754903441222,-151.0,0.00021987,2]
[378532169,1754903441231,-151.0,0.00021987,2]
[378532170,1754903441242,-151.0,0.00021987,2]
[378532171,1754903441252,-151.0,0.00021987,2]
[378532172,1754903441262,-500.0,0.00021987,2]
[378532173,1754903441271,-151.0,0.00021987,2]
[378532174,1754903441280,-151.0,0.00021987,2]
[378532175,1754903441289,-151.0,0.00021987,2]
[378532176,1754903441298,-500.0,0.00021987,2]
[378532177,1754903441307,-151.0,0.00021987,2]
[378532178,1754903441316,-151.0,0.00021987,2]
[378532179,1754903441325,-151.0,0.00021987,2]
[378532180,1754903441334,-151.0,0.00021987,2]
[378532181,1754903441343,-500.0,0.00021987,2]
[378532182,1754903441353,-151.0,0.00021987,2]
[378532183,1754903441362,-151.0,0.00021987,2]
[378532184,1754903441371,-151.0,0.00021987,2]
[378532185,1754903441380,-197.12369318,0.00021987,2]
[378532186,1754903441390,-500.0,0.00021987,2]
[378532187,1754903441399,-151.0,0.00021987,2]
[378532188,1754903441408,-151.0,0.00021987,2]
[378532189,1754903441417,-151.0,0.00021987,2]
[378532190,1754903441427,-151.0,0.00021987,2]
[378532191,1754903441435,-500.0,0.00021987,2]
[378532192,1754903441445,-151.0,0.00021987,2]
[378532193,1754903441454,-500.0,0.00021987,2]
[378532194,1754903441463,-151.0,0.00021987,2]
[378532195,1754903441473,-151.0,0.00021987,2]
[378532196,1754903441482,-151.0,0.00021987,2]
[378532197,1754903441491,-151.0,0.00021987,2]
[378532198,1754903441501,-151.0,0.00021987,2]
[378532199,1754903441510,-151.0,0.00021987,2]
[378532200,1754903441519,-500.0,0.00021987,2]
[378532201,1754903441529,-151.0,0.00021987,2]
[378532202,1754903441538,-151.0,0.00021987,2]
[378532203,1754903441547,-151.0,0.00021987,2]
[378532204,1754903441556,-500.0,0.00021987,2]
[378532205,1754903441565,-151.0,0.00021987,2]
[378532206,1754903441574,-500.0,0.00021987,2]
[378532207,1754903441584,-151.0,0.00021987,2]
[378532208,1754903441593,-500.0,0.00021987,2]
[378532209,1754903441603,-151.0,0.00021987,2]
[378532210,1754903441612,-151.0,0.00021987,2]
[378532211,1754903441621,-500.0,0.00021987,2]
[378532212,1754903441630,-151.0,0.00021987,2]
[378532213,1754903441641,-500.0,0.00021987,2]
[378532214,1754903441651,-151.0,0.00021987,2]
[378532215,1754903441660,-151.0,0.00021987,2]
[378532216,1754903441671,-151.0,0.00021987,2]
[378532217,1754903441681,-151.0,0.00021987,2]
[378532218,1754903441690,-151.0,0.00021987,2]
[378532219,1754903441701,-151.0,0.00021987,2]
[378532220,1754903441710,-151.0,0.00021987,2]
[378532221,1754903441720,-151.0,0.00021987,2]
[378532222,1754903441729,-151.0,0.00021987,2]
[378532223,1754903441739,-151.0,0.00021987,2]
[378532224,1754903441748,-256.43342021,0.00021987,2]
[378532225,1754903441757,-151.0,0.00021987,2]
[378532226,1754903441766,-151.0,0.00021987,2]
[378532227,1754903441775,-151.0,0.00021987,2]
[378532228,1754903441785,-151.0,0.00022,7]
[378532229,1754903441793,-240.972281,0.00022,7]
[378532230,1754903441802,-577.057513,0.00022,7]
[378532231,1754903441811,-577.057513,0.00022,7]
[378532232,1754903441820,-577.057513,0.00022,7]
[378532233,1754903441829,-577.057513,0.00022,7]
[378532234,1754903441839,-524.70695,0.00022,7]
[378532235,1754903441849,-524.70695,0.00022,7]
[378532236,1754903441858,-524.70695,0.00022,7]
[378532237,1754903441867,-524.70695,0.00022,7]
[378532238,1754903441877,-971.49987,0.00022,7]
[378532239,1754903441889,-971.49987,0.00022,7]
[378532240,1754903441899,-971.49987,0.00022,7]
[378532241,1754903441908,-971.49987,0.00022,7]
[378532242,1754903441917,-8604.54,0.00022,7]
[378532243,1754903441929,-151.0,0.00022,7]
[378532245,1754903441939,-151.0,0.00022,7]
[378532247,1754903441947,-151.0,0.00022,7]
[378532249,1754903441957,-206.449014,0.00022,7]
[378532251,1754903441966,-73562.28,0.00022,7]
[378532253,1754903441976,-23573.92,0.00022,7]
[378532255,1754903441985,-163.439904,0.00022,7]
[378532257,1754903441994,-163.439904,0.00022,7]
[378532259,1754903442004,-163.439904,0.00022,7]
[378532261,1754903442014,-163.439904,0.00022,7]
[378532263,1754903442023,-215.4905783,0.00022,7]
[378532265,1754903442032,-12671.21867243,0.00022,7]
[378532267,1754903442042,-186.0,0.00022,2]
[378532269,1754903442051,-527.9539256,0.00022,7]
[378532271,1754903442060,-160.0,0.00022,7]
[378532273,1754903442069,-160.0,0.00022,7]
[378532275,1754903442078,-160.0,0.00022,7]
[378532277,1754903442088,-417.15472785,0.00022,7]
[378532279,1754903442097,-461.69158338,0.00022,7]
[378532281,1754903442106,-2264.10087164,0.00022042,2]
[378532283,1754903442115,-12671.21867243,0.00022094,2]
[378532285,1754903442124,-160.0,0.00022094,2]
[378532287,1754903442133,-417.15472785,0.00022094,2]
[378532289,1754903442142,-160.0,0.00022094,2]
[378532291,1754903442151,-843.18994796,0.00022094,2]
[378532293,1754903442160,-160.0,0.00022094,2]
[378532295,1754903442169,-160.0,0.00022094,2]
[378532297,1754903442178,-160.0,0.00022094,2]
[378532299,1754903442187,-461.69158338,0.00022094,2]
[378532301,1754903442196,-216.68257536,0.00022094,2]
[378532303,1754903442206,-2347.87260389,0.00022097,2]
[378532305,1754903442215,-160.0,0.0002211,2]
[378532307,1754903442223,-160.0,0.00022117,2]
[378532309,1754903442232,-2434.74389024,0.00022152,2]
[378532311,1754903442241,-500.0,0.00022161,2]
[378532312,1754903442252,-500.0,0.00022167,2]
[378532314,1754903442262,-392.16563197,0.00022167,2]
[378532316,1754903442271,-2524.82941417,0.00022207,2]
[378532318,1754903442280,-312.6,0.00022219,2]
[378532320,1754903442289,-260.0,0.00022223,2]
[378532322,1754903442298,-2618.2481025,0.00022262,2]
[378532325,1754903442309,-1001.14541372,0.0002228,2]
[378532327,1754903442318,-1164.95935531,0.00022317,2]
[378532329,1754903442327,-500.0,0.00022327,2]
[378532331,1754903442337,-44909.19116495,0.00022329,2]
[378532333,1754903442346,-200.0,0.00022335,15]
[378532335,1754903442356,-200.0,0.00022335,15]
[378532337,1754903442365,-200.0,0.00022335,15]
[378532339,1754903442375,-200.0,0.00022335,15]
[378532341,1754903442384,-200.0,0.00022335,15]
[378532343,1754903442394,-200.0,0.00022335,15]
[378532345,1754903442403,-200.0,0.00022335,15]
[378532347,1754903442412,-151.0,0.000224,7]
[378532349,1754903442421,-500.0,0.00022435,2]
[378532351,1754903442430,-254.49316604,0.00022521,2]
[378532353,1754903442439,-493.72498587,0.00022521,2]
[378532354,1754903442448,-1000.0,0.00022521,2]
[378532356,1754903442457,-1000.0,0.00022521,2]
[378532358,1754903442466,-1000.0,0.00022521,2]
[378532360,1754903442476,-1000.0,0.00022521,2]
[378532362,1754903442485,-1000.0,0.00022521,2]
[378532364,1754903442494,-1000.0,0.00022521,2]
[378532366,1754903442505,-1000.0,0.00022521,2]
[378532368,1754903442514,-1000.0,0.00022521,2]
[378532370,1754903442523,-1000.0,0.00022521,2]
[378532372,1754903442532,-1000.0,0.00022521,2]
[378532373,1754903442542,-1000.0,0.00022521,2]
[378532375,1754903442551,-1000.0,0.00022521,2]
[378532377,1754903442560,-1000.0,0.00022521,2]
[378532379,1754903442569,-1000.0,0.00022521,2]
[378532380,1754903442578,-540.96312681,0.00022521,2]
[378532382,1754903442587,-1010.97540017,0.00022521,2]
[378532384,1754903442598,-510.02556055,0.00022521,2]
[378532385,1754903442606,-802.31322518,0.00022521,2]
[378532386,1754903442616,-1000.0,0.00022521,2]
[378532387,1754903442625,-1000.0,0.00022521,2]
[378532388,1754903442634,-1000.0,0.00022521,2]
[378532389,1754903442643,-1066.80664066,0.00022521,2]
[378532390,1754903442653,-748.07351204,0.00022521,2]
[378532391,1754903442662,-1000.0,0.00022521,2]
[378532392,1754903442671,-1000.0,0.00022521,2]
[378532393,1754903442680,-1000.0,0.00022521,2]
[378532394,1754903442689,-1000.0,0.00022521,2]
[378532395,1754903442698,-1000.0,0.00022521,2]
[378532396,1754903442707,-1000.0,0.00022521,2]
[378532397,1754903442716,-964.7644889,0.00022521,2]
[378532398,1754903442726,-698.31463455,0.00022521,2]
[378532399,1754903442735,-1000.0,0.00022521,2]
[378532401,1754903442744,-1000.0,0.00022521,2]
[378532402,1754903442754,-1000.0,0.00022521,2]
[378532403,1754903442763,-504.6663389,0.00022521,2]
[378532404,1754903442773,-816.07866541,0.00022521,2]
[378532405,1754903442782,-500.24735261,0.00022521,2]
[378532406,1754903442792,-333.11519119,0.00022521,2]
[378532407,1754903442801,-1005.31612828,0.00022521,2]
[378532408,1754903442811,-424.12243688,0.00022521,2]
[378532409,1754903442820,-501.80345153,0.00022521,2]
[378532410,1754903442829,-1000.0,0.00022521,2]
[378532411,1754903442840,-524.70695,0.00022521,7]
[378532412,1754903442849,-524.70695,0.00022521,7]
[378532413,1754903442859,-971.49987,0.00022521,7]
[378532414,1754903442868,-971.49987,0.00022521,7]
[378532415,1754903442879,-151.0,0.00022521,7]
[378532416,1754903442891,-151.0,0.00022535,2]
[378532417,1754903442900,-577.057513,0.00022583,7]
[378532419,1754903442909,-577.057513,0.00022583,7]
[378532421,1754903442920,-151.0,0.00022583,7]
[378532422,1754903442929,-163.439904,0.00022583,7]
[378532423,1754903442938,-163.439904,0.00022583,7]
[378532424,1754903442948,-156.587,0.00022685,2]
[378532425,1754903442958,-500.0,0.00022709,2]
[378532426,1754903442967,-472.1751104,0.00022715,2]
[378532427,1754903442977,-312.6,0.00022725,2]
[378532428,1754903442986,-450.0,0.00022727,2]
[378532429,1754903442995,-360.0,0.00022771,2]
[378532430,1754903443005,-971.49987,0.00022798,7]
[378532431,1754903443014,-971.49987,0.00022798,7]
[378532432,1754903443024,-151.0,0.000228,5]
[378532433,1754903443033,-151.0,0.000229,6]
[378532434,1754903443043,-500.0,0.00022983,2]
[378532435,1754903443052,-160.0,0.00023,3]
[378532436,1754903443061,-160.0,0.00023,3]
[378532437,1754903443071,-160.0,0.00023,3]
[378532438,1754903443080,-216.68257536,0.00023,3]
[378532439,1754903443089,-160.0,0.00023,3]
[378532440,1754903443098,-160.0,0.00023,2]
[378532441,1754903443108,-843.18994796,0.00023,3]
[378532442,1754903443118,-160.0,0.00023,3]
[378532443,1754903443127,-231.9940742,0.00023,3]
[378532444,1754903443137,-524.70695,0.00023068,7]
[378532445,1754903443146,-524.70695,0.00023068,7]
[378532446,1754903443155,-163.439904,0.00023068,7]
[378532448,1754903443165,-163.439902,0.00023068,7]
[378532450,1754903443174,-1500.0,0.00023068,2]
[378532452,1754903443183,-1500.0,0.00023068,2]
[378532454,1754903443192,-1508.09197012,0.00023068,2]
[378532456,1754903443201,-1618.11533414,0.00023068,2]
[378532457,1754903443210,-1003.05769625,0.00023068,2]
[378532458,1754903443219,-1500.0,0.00023068,2]
[378532460,1754903443229,-1379.64498041,0.00023068,2]
[378532462,1754903443238,-1500.0,0.00023068,2]
[378532463,1754903443247,-506.31177461,0.00023068,2]
[378532465,1754903443256,-304.78275468,0.00023068,2]
[378532467,1754903443265,-1500.0,0.00023068,2]
[378532469,1754903443275,-1500.0,0.00023068,2]
[378532471,1754903443284,-1500.0,0.00023068,2]
[378532473,1754903443293,-1500.0,0.00023068,2]
[378532475,1754903443302,-1500.0,0.00023068,2]
[378532476,1754903443311,-1500.0,0.00023068,2]
[378532477,1754903443320,-1000.41157304,0.00023068,2]
[378532478,1754903443328,-1500.0,0.00023068,2]
[378532479,1754903443337,-1500.0,0.00023068,2]
[378532480,1754903443346,-1500.0,0.00023068,2]
[378532481,1754903443355,-1500.0,0.00023068,2]
[378532482,1754903443364,-1500.0,0.00023068,2]
[378532483,1754903443373,-1500.0,0.00023068,2]
[378532484,1754903443382,-251.16063819,0.00023068,2]
[378532485,1754903443391,-1504.95308721,0.00023068,2]
[378532486,1754903443400,-1014.81854937,0.00023068,2]
[378532487,1754903443410,-1500.0,0.00023068,2]
[378532489,1754903443419,-577.057513,0.00023082,7]
[378532490,1754903443428,-577.057507,0.00023082,7]
[378532492,1754903443437,-151.0,0.00023082,7]
[378532494,1754903443446,-151.42926935,0.00023083,2]
[378532496,1754903443455,-524.70695,0.000231,7]
[378532498,1754903443464,-524.706954,0.000231,7]
[378532500,1754903443475,-971.49987,0.000231,7]
[378532502,1754903443485,-971.499879,0.000231,7]
[378532503,1754903443495,-46641.88,0.000231,2]
[378532504,1754903443504,-498.13918,0.00023121,2]
[378532506,1754903443513,-158.46401038,0.00023173,2]
[378532509,1754903443522,-160.06312042,0.00023173,2]
[378532511,1754903443532,-203.58854369,0.00023173,2]
[378532514,1754903443540,-500.0,0.00023173,2]
[378532529,1754903443682,-501.71607261,0.00023173,2]
[378532532,1754903443692,-501.12325849,0.00023173,2]
[378532534,1754903443702,-500.0,0.00023173,2]
[378532536,1754903443711,-500.0,0.00023173,2]
[378532538,1754903443720,-500.0,0.00023173,2]
[378532539,1754903443729,-500.0,0.00023173,2]
[378532541,1754903443739,-500.0,0.00023173,2]
[378532543,1754903443748,-73562.28,0.000232,7]
[378532545,1754903443757,-23573.92,0.000232,7]
[378532546,1754903443766,-151.0,0.000232,7]
[378532547,1754903443775,-312.6,0.0002323,2]
[378532549,1754903443784,-500.0,0.00023257,2]
[378532551,1754903443793,-874.62702668,0.00023268,2]
[378532553,1754903443802,-596.32093552,0.00023288,2]
[378532554,1754903443812,-1073.37768394,0.00023288,2]
[378532557,1754903443822,-1908.22699368,0.00023288,2]
[378532559,1754903443831,-2981.60467762,0.00023288,2]
[378532560,1754903443840,-266.79085856,0.00023288,2]
[378532562,1754903443848,-1067.16343424,0.00023288,2]
[378532564,1754903443858,-2401.11772703,0.00023288,2]
[378532567,1754903443868,-460.0,0.00023319,2]
[378532569,1754903443879,-19187.29552238,0.00023356,2]
[378532571,1754903443891,-151.0,0.00023356,2]
[378532573,1754903443901,-151.0,0.000234,10]
[378532575,1754903443910,-8604.54,0.000234,7]
[378532577,1754903443921,-4293.51073577,0.00023501,2]
[378532578,1754903443930,-500.0,0.00023503,2]
[378532580,1754903443940,-500.0,0.00023531,2]
[378532583,1754903443949,-4268.65373695,0.00023606,2]
[378532585,1754903443959,-366.59061769,0.00023616,2]
[378532587,1754903443970,-2000.0,0.00023616,2]
[378532589,1754903443979,-686.33809383,0.00023616,2]
[378532591,1754903443988,-1109.01126538,0.00023616,2]
[378532593,1754903443998,-2000.0,0.00023616,2]
[378532595,1754903444007,-1880.63350914,0.00023616,2]
[378532597,1754903444016,-2000.0,0.00023616,2]
[378532599,1754903444025,-2000.0,0.00023616,2]
[378532601,1754903444034,-1515.12606902,0.00023616,2]
[378532603,1754903444043,-2000.0,0.00023616,2]
[378532604,1754903444052,-2000.0,0.00023616,2]
[378532607,1754903444061,-2000.0,0.00023616,2]
[378532608,1754903444071,-337.60569584,0.00023616,2]
[378532610,1754903444080,-1018.79339788,0.00023616,2]
[378532612,1754903444089,-1015.28323414,0.00023616,2]
[378532614,1754903444099,-1503.85252823,0.00023616,2]
[378532616,1754903444108,-2151.0,0.00023621,2]
[378532618,1754903444117,-636.0,0.00023621,2]
[378532620,1754903444126,-971.0,0.00023621,2]
[378532622,1754903444135,-231.0,0.00023637,2]
[378532624,1754903444144,-587.0,0.00023651,2]
[378532626,1754903444153,-587.0,0.00023651,2]
[378532628,1754903444162,-2351.0,0.00023652,2]
[378532630,1754903444171,-231.0,0.00023681,2]
[378532632,1754903444180,-231.0,0.00023704,2]
[378532634,1754903444192,-1000.0,0.00023721,2]
[378532636,1754903444201,-500.0,0.00023721,2]
[378532639,1754903444211,-1000.0,0.00023721,2]
[378532640,1754903444220,-1000.0,0.00023721,2]
[378532642,1754903444230,-1000.0,0.00023721,2]
[378532645,1754903444239,-1000.0,0.00023721,2]
[378532647,1754903444249,-13256.5582915,0.00023727,2]
[378532649,1754903444259,-160.0,0.00023734,3]
[378532650,1754903444268,-312.6,0.00023735,2]
[378532652,1754903444277,-13256.5582915,0.00023758,2]
[378532654,1754903444286,-500.0,0.00023805,2]
[378532656,1754903444295,-5843.94516813,0.00023829,2]
[378532658,1754903444304,-150.0,0.00023831,2]
[378532660,1754903444314,-150.0,0.00023831,2]
[378532662,1754903444323,-152.296,0.00023831,2]
[378532664,1754903444332,-245.0,0.00023831,2]
[378532666,1754903444341,-560.0,0.00023867,2]
[378532668,1754903444350,-2351.0,0.00023879,2]
[378532670,1754903444361,-151.0,0.000239,10]
[378532672,1754903444370,-150.0,0.00023953,2]
[378532674,1754903444379,-255.0,0.00023969,2]
[378532676,1754903444388,-207.665,0.00023969,2]
[378532678,1754903444398,-500.0,0.00023973,2]
[378532680,1754903444407,-500.0,0.00023973,2]
[378532682,1754903444416,-500.0,0.00023973,2]
[378532684,1754903444426,-150.0,0.00023973,2]
[378532686,1754903444435,-500.0,0.00023973,2]
[378532688,1754903444444,-500.0,0.00023973,2]
[378532690,1754903444454,-500.0,0.00023973,2]
[378532692,1754903444462,-500.24729121,0.00023973,2]
[378532694,1754903444471,-500.61074542,0.00023973,2]
[378532696,1754903444481,-535.9525052,0.00023973,2]
[378532698,1754903444490,-500.0,0.00023973,2]
[378532700,1754903444501,-500.0,0.00023973,2]
[378532702,1754903444510,-500.0,0.00023973,2]
[378532704,1754903444519,-248.49009127,0.00023973,2]
[378532706,1754903444527,-500.0,0.00023973,2]
[378532708,1754903444536,-500.0,0.00023973,2]